Workbook

Sheet Calculator
L1: Effective Jan 1, 2023
L2: Version 20221208
D4: Estimated Cost for Reducing Contract Minimums
D7: Type of Service
G12: Existing | J12: New
D14: Contract Minimum Demand | G14: 95.33333333 | J14: =IF(J16=0,0,IF(J16>=75,J16*2/3,3)) -> 0
D16: Expected Peak Demand | G16: =G14*3/2 -> 143 | J16: 0
D18: Rate | F18: General Service (R61) | I18: =IF(J16>=75,"General Service (R61)",CHOOSE(Main!$F$8,"Small General Service (R41)","Oil & Gas Service (R45)")) -> Small General Service (R41)
D22: Notice Period Required | J22: =MAX(Main!F30:F31) -> 3
D24: Or
D26: Estimated Payment in Lieu of Notice | J26: =Main!F35 -> 1404.72
B29: Next Steps
B30: If you are interested in proceeding, please contact FortisAlberta for a formal “Review of Minimum”.

Sheet Sheet1 (hidden)

Sheet Main (hidden)
A1: PILON Calculator | G1: Change effective Jan 1, 2015
G2: Version 20150807
F4: Do you know which rate you are buying down to?
F5: 2
F7: Select the Type of Service
F8: 1
A10: Service Requirements | D10: Original | F10: New
A11: Rate | D11: 1 | F11: 1
A12: Service Type | D12: Commercial/Oil & Gas | F12: =IF(Main!$F$5=1,CHOOSE(F$11,"N/A","Commercial","Oil & Gas","Oil & Gas","Commercial/Oil & Gas"),IF(Main!$F$13>=75,"Commercial/Oil & Gas",IF(Main!$F$8=1,"N/A",IF(Main!$F$8=2,"Commercial",CHOOSE(F$11,"N/A","Oil & Gas","Oil & Gas"))))) -> N/A | Q12: =InvestTable!P10/InvestTable!P16*(#REF!-#REF!) -> 
A13: Expected Peak Demand | D13: =Calculator!G14*3/2 -> 143 | E13: kW | F13: =Calculator!J16 -> 0 | G13: kW
N14: =RIGHT(G1,4)&" Fortis MIL ("&#REF!&" kW)" ->  | O14: =RIGHT(G1,4)&" Fortis MIL ("&#REF!&" kW) excl. Base Investment" ->  | P14: =YEAR(#REF!)&" "&#REF! ->  | Q14: (A) | R14: (B) | S14: (C)
A16: Payment in Lieu of Notice | D16: Original | F16: New | J16: Case3: A > B > C
A17: Rate | D17: ="Rate 61" -> Rate 61 | F17: =IF(Main!$F$5=1,CHOOSE(F$11,"N/A","Rate 41","Rate 44","Rate 45","Rate 61"),IF(Main!$F$13>=75,"Rate 61",IF(Main!$F$8=1,"Rate 41","Rate 45"))) -> Rate 41 | J17: ="Buy-down Charge = Max(A - B - Max(A - C , 0), 0) = "&IF(#REF!=3,0,"N/A") -> 
A18: Contract Minimum Demand | D18: =ROUND(CHOOSE(D$11,D13*2/3),1) -> 95.3 | E18: kW | F18: =IF(F13=0,0,CHOOSE(InvestTable!$I$27,"",3,3,3,ROUND(F13*2/3,1))) -> 0 | G18: kW
A19: Minimum Monthly Charge | D19: =CHOOSE(D$11,'Rate 61'!O7) -> 775.75 | F19: =IF(F13=0,0,CHOOSE(InvestTable!$I$27,"",'Rate 41'!O8,'Rate 44'!O8,'Rate 45'!O8,'Rate 61'!O8,)) -> 0
A20: Monthly Payment in Lieu of Notice - T Component | F20: =IF($D$22-$F$22<0,0,$D$22-$F$22) -> 468.24
A21: Monthly Payment in Lieu of Notice - D Component | F21: =IF($D$23-$F$23<0,0,$D$23-$F$23) -> 307.51
A22: Monthly Charge T Component | D22: ='Rate 61'!R7 -> 468.24 | F22: =IF(F13=0,0,CHOOSE(InvestTable!$I$27,"",'Rate 41'!R8,'Rate 44'!R8,'Rate 45'!R8,'Rate 61'!R8)) -> 0
A23: Monthly Charge D Component | D23: ='Rate 61'!U7 -> 307.51 | F23: =IF(F13=0,0,CHOOSE(InvestTable!$I$27,"",'Rate 41'!U8,'Rate 44'!U8,'Rate 45'!U8,'Rate 61'!U8)) -> 0
A24: Monthly Payment in Lieu of Notice | F24: =IF(($D$19-$F$19)<0,0,$D$19-$F$19) -> 775.75 | G24: /month
A26: Decrease in Contract Minimum Demand | F26: =IF((D18-F18)<0,0,D18-F18) -> 95.3 | G26: kW
A27: Notice Period Required for T - component (Maximum 60 Months) | F27: =MIN(ROUND($F$26/30,0),60) -> 3 | G27: months
A28: Notice Period Required for D - component (Maximum 24 Months) | F28: =MIN(ROUND($F$26/30,0),24) -> 3 | G28: months
A29: Actual Notice Provided | G29: months
A30: Months Falling Short of Required Notice Period - T Component | F30: =MAX($F$27-$F$29,0) -> 3 | G30: months
A31: Months Falling Short of Required Notice Period - D Component | F31: =MAX($F$28-$F$29,0) -> 3 | G31: months
A32: Payment in Lieu of Notice - T Component | F32: =IF($F$24<=0,0,$F$30*$F$20) -> 1404.72
A33: Payment in Lieu of Notice - D Component | F33: =IF($F$24<=0,0,$F$31*$F$21) -> 922.53
A34: Payment in Lieu of Notice - D Component (Removed) as per AUC decision 25916-D01-2021 | F34: =F33*-1 -> -922.53
A35: Total Payment in Lieu of Notice | F35: =SUM(F32:F34) -> 1404.72

Sheet InvestTable (hidden)
A1: Maximum Investment Levels for Distribution Facilities When Service Life Is Less Than 15 Years.
A22: Points of Service with a life of less than 2 years are considered temporary services and the maximum investment is zero.
A25: Drop-Down Menus
A26: OldRate | B26: NewRate | C26: OldType | D26: NewType
A27: Rate 11 | B27: Rate 11 | C27: Residential | D27: Residential | F27: Please select the rate. | G27: Please select the type of service. | H27: Yes | I27: =IF(Main!$F$17="Rate 41",2,IF(Main!$F$17="Rate 44",3,IF(Main!$F$17="Rate 45",4,IF(Main!$F$17="Rate 61",5,1)))) -> 2
A28: Rate 21 | B28: Rate 21 | C28: Farm | D28: Farm | F28: Rate 41 | G28: Non Oil & Gas | H28: No
A29: Rate 23 | B29: Rate 23 | C29: Irrigation | D29: Irrigation | F29: Rate 44 | G29: Oil & Gas
A30: Rate 26 | B30: Rate 26 | C30: Commercial/Oil & Gas | D30: Commercial/Oil & Gas | F30: Rate 45
A31: Rate 41 | B31: Rate 41 | C31: Large General Service | D31: Large General Service | F31: Rate 61
A32: Rate 44 | B32: Rate 44
A33: Rate 45 | B33: Rate 45 | F33: Please select the rate.
A34: Rate 61 | B34: Rate 61 | F34: Rate 44
A35: Rate 63 | B35: Rate 63 | F35: Rate 45

Sheet Rate 41 (hidden)
B2: Small General Service - Rate 41
B3: =EffectiveDate -> FortisAlberta Inc. 2017 Rates, effective January 1, 2017
M4: Minimum | O4: Minimum
B5: User input area: | M5: Demand | O5: Charge
B6: Demand (kW of capacity) | E6: =Main!F18 -> 0 | G6: kWh delivered | K6: =E6*730*E7 -> 0 | M6: Input | O6: =O20 -> 29.73 | R6: =E20 -> 0 | U6: =G20 -> 29.73
B7: Load Factor | E7: 0 | G7: first block (kWh) | K7: =((200*$E$6)*12/365)*$E$8 -> 0 | M7: =Main!D18 -> 95.3 | N7: 0 | O7: 1081.08 | Q7: =M7 -> 95.3 | R7: 370.69 | T7: =Q7 -> 95.3 | U7: 710.38
B8: Number of days in Consumption Period | E8: =365/12 -> 30.41666667 | M8: =Main!F18 -> 0 | N8: 0 | O8: 27.97 | Q8: =M8 -> 0 | R8: 0 | T8: =Q8 -> 0 | U8: 27.97
B9: Municipal Code | E9: 99-0001
B10: Epcor RRO rider (daily amount) | E10: 0
B13: BASE CHARGES | C13: Generation | E13: Transmission | G13: Distribution | I13: Retail | M13: Units | O13: Charges
B14: Energy Charge (¢/kWh)
O15: =ROUND((((E15*M15)+(G15*M15))/100),2) -> 0
O16: =ROUND((SUM(C16:E16)*M16/100),2) -> 0
B17: Capacity Charges
B18: all kW | E18: 0.119662 | G18: 0.250301 | M18: =E6 -> 0 | O18: =ROUNDUP((((E18+G18)*M18)*E8),2) -> 0
B19: Service Charge | G19: 0.977527 | M19: =E8 -> 30.41666667 | O19: =ROUND(G19*M19,2) -> 29.73
B20: Total Base Charges | C20: =(C15*M15/100)+(C16*M16/100) -> 0 | E20: =ROUND(E18*$E$8*$M$18+E19*$M$19,2) -> 0 | G20: =ROUND(G18*$E$8*$M$18+G19*$M$19,2) -> 29.73 | I20: =#REF!*E8 ->  | O20: =SUM(O15:O19) -> 29.73
B22: RIDERS | C22: G Riders | E22: T Riders | G22: D Riders | K22: Other Riders
B23: 2001 EESAI RRO Shortfall Rider | K23: =E10 -> 0 | M23: =E8 -> 30.41666667 | O23: =ROUND((K23*M23/100),2) -> 0
B24: Municipal Assessment Rider A-1 | G24: 0 | M24: =E20+G20 -> 29.73 | O24: =ROUND((G24*M24),2) -> 0
B25: Municipal Franchise (Local Access) Fee | K25: 0 | M25: =E20+G20 -> 29.73 | O25: =ROUND((K25*M25),2) -> 0
B26: Total Riders | G26: =ROUND((G23*M23/100),2)+ROUND((G24*M24),2)+ROUND((G25*M25),2) -> 0 | K26: =ROUND((K23*M23/100),2)+ROUND((K24*M24),2)+ROUND((K25*M25),2) -> 0 | O26: =ROUNDUP((SUM(O23:O25)),2) -> 0
B28: Final Charges | C28: =C20+C26 -> 0 | E28: =E20+E26 -> 0 | G28: =G20+G26 -> 29.73 | I28: =I20+I26 ->  | K28: =K20+K26 -> 0 | O28: =ROUNDUP((SUM(O20:O25)),2) -> 29.73
B30: Percentage of Total Charges | C30: =C28/O28 -> 0 | E30: =E28/O28 -> 0 | G30: =G28/O28 -> 1 | I30: =I28/O28 ->  | K30: =K28/O28 -> 0 | O30: =O28/O28 -> 1
B35: 01-0003
B36: 01-0046
B37: 01-0048
B38: 01-0098
B39: 01-0117
B40: 01-0200
B41: 01-0203
B42: 01-0291
B43: 01-0292
B44: 01-0347
B45: 02-0011
B46: 02-0014
B47: 02-0016
B48: 02-0017
B49: 02-0019
B50: 02-0024
B51: 02-0030
B52: 02-0031
B53: 02-0034
B54: 02-0039
B55: 02-0040
B56: 02-0043
B57: 02-0044
B58: 02-0047
B59: 02-0050
B60: 02-0052
B61: 02-0056
B62: 02-0065
B63: 02-0069
B64: 02-0070
B65: 02-0079
B66: 02-0082
B67: 02-0086
B68: 02-0088
B69: 02-0091
B70: 02-0095
B71: 02-0100
B72: 02-0115
B73: 02-0124
B74: 02-0135
B75: 02-0143
B76: 02-0148
B77: 02-0151
B78: 02-0180
B79: 02-0188
B80: 02-0192
B81: 02-0194
B82: 02-0197
B83: 02-0202
B84: 02-0211
B85: 02-0215
B86: 02-0218
B87: 02-0219
B88: 02-0224
B89: 02-0232
B90: 02-0238
B91: 02-0239
B92: 02-0248
B93: 02-0249
B94: 02-0250
B95: 02-0254
B96: 02-0257
B97: 02-0261
B98: 02-0265
B99: 02-0266
B100: 02-0268
B101: 02-0280
B102: 02-0297
B103: 02-0301
B104: 02-0303
B105: 02-0307
B106: 02-0310
B107: 02-0311
B108: 02-0318
B109: 02-0321
B110: 02-0326
B111: 02-0331
B112: 02-0333
B113: 02-0335
B114: 02-0345
B115: 02-0350
B116: 02-0356
B117: 02-0360
B118: 02-0361
B119: 02-0387
B120: 03-0002
B121: 03-0004
B122: 03-0005
B123: 03-0007
B124: 03-0010
B125: 03-0013
B126: 03-0018
B127: 03-0022
B128: 03-0029
B129: 03-0041
B130: 03-0042
B131: 03-0054
B132: 03-0055
B133: 03-0061
B134: 03-0062
B135: 03-0064
B136: 03-0066
B137: 03-0068
B138: 03-0076
B139: 03-0077
B140: 03-0078
B141: 03-0081
B142: 03-0093
B143: 03-0096
B144: 03-0097
B145: 03-0099
B146: 03-0109
B147: 03-0112
B148: 03-0128
B149: 03-0144
B150: 03-0149
B151: 03-0152
B152: 03-0153
B153: 03-0154
B154: 03-0182
B155: 03-0183
B156: 03-0207
B157: 03-0208
B158: 03-0209
B159: 03-0220
B160: 03-0223
B161: 03-0233
B162: 03-0234
B163: 03-0236
B164: 03-0240
B165: 03-0270
B166: 03-0272
B167: 03-0276
B168: 03-0278
B169: 03-0295
B170: 03-0300
B171: 03-0304
B172: 03-0313
B173: 03-0315
B174: 03-0317
B175: 03-0338
B176: 03-0339
B177: 03-0363
B178: 03-0364
B179: 04-0009
B180: 04-0026
B181: 04-0028
B182: 04-0057
B183: 04-0080
B184: 04-0123
B185: 04-0129
B186: 04-0134
B187: 04-0138
B188: 04-0185
B189: 04-0186
B190: 04-0187
B191: 04-0196
B192: 04-0210
B193: 04-0230
B194: 04-0237
B195: 04-0253
B196: 04-0256
B197: 04-0273
B198: 04-0277
B199: 04-0279
B200: 04-0282
B201: 04-0283
B202: 04-0288
B203: 04-0306
B204: 04-0308
B205: 04-0324
B206: 04-0344
B207: 04-0354
B208: 04-0357
B209: 04-0358
B210: 04-0359
... 90 more rows

Sheet Rate 44 (hidden)
B2: Oil & Gas (Capacity) Service - Rate 44
B3: =EffectiveDate -> FortisAlberta Inc. 2017 Rates, effective January 1, 2017
M4: Minimum | O4: Minimum
B5: User input area: | M5: Demand | O5: Charge
B6: Demand (kW of capacity) | E6: =Main!F18 -> 0 | G6: kWh delivered | K6: =E6*730*E7 -> 0 | M6: Input | O6: =O20 -> 123.65 | R6: =E20 -> 36.86 | U6: =G20 -> 86.78
B7: Load Factor | E7: 0 | M7: =Main!D18 -> 95.3 | N7: 0 | O7: 3088.1 | Q7: =M7 -> 95.3 | R7: 1171.07 | T7: =Q7 -> 95.3 | U7: 1917.01
B8: Number of days in Consumption Period | E8: =365/12 -> 30.41666667 | M8: =Main!F18 -> 0 | N8: 0 | O8: 123.65 | Q8: =M8 -> 0 | R8: 36.86 | T8: =Q8 -> 0 | U8: 86.78
B9: Municipal Code | E9: 99-0001
B10: Epcor RRO rider (daily amount) | E10: 0
B13: BASE CHARGES | C13: Generation | E13: Transmission | G13: Distribution | I13: Retail | M13: Units | O13: Charges
B14: Energy Charges
B15: all kWh | C15: 0 | M15: =K6 -> 0 | O15: =ROUND((SUM(C15:G15)*M15/100),2) -> 0
B16: Capacity Charges
B17: first 3 kW | E17: 0.404 | G17: 0.95105 | M17: 3 | O17: =ROUND((((E17*M17)+(G17*M17))*$E$8),2) -> 123.65
B18: Next 12 kW | E18: 0.404 | G18: 0.68477 | M18: =MIN(MAX(E6-3,0),12) -> 0 | O18: =ROUND((((E18*M18)+(G18*M18))*$E$8),2) -> 0
B19: all remaining | E19: 0.404 | G19: 0.64701 | M19: =MAX(E6-15,0) -> 0 | O19: =ROUND((((E19*M19)+(G19*M19))*E8),2) -> 0
B20: Total Base Charges | C20: =C15*M15/100 -> 0 | E20: =ROUNDDOWN((E15*$M15/100*$E8),2)+ROUNDDOWN((E17*$M17*$E8),2)+ROUND((E18*$M18*$E8),2)+ROUND((E19*$M19*$E8),2) -> 36.86 | G20: =ROUND((G15*$M15/100*$E8),2)+ROUND((G17*$M17*$E8),2)+ROUND((G18*$M18*$E8),2)+ROUND((G19*$M19*$E8),2) -> 86.78 | O20: =SUM(O15:O19) -> 123.65
B22: RIDERS | C22: G Riders | E22: T Riders | G22: D Riders | K22: Other Riders
B23: 2001 EESAI RRO Shortfall Rider | K23: =E10 -> 0 | M23: =E8 -> 30.41666667 | O23: =ROUND((K23*M23/100),2) -> 0
B24: Municipal Assessment Rider A-1 | G24: 0 | M24: =E20+G20 -> 123.64 | O24: =ROUND((G24*M24),2) -> 0
B25: Municipal Franchise (Local Access) Fee | K25: 0 | M25: =E20+G20 -> 123.64 | O25: =ROUND((K25*M25),2) -> 0
B26: Total Riders | G26: =ROUND((G23*M23/100),2)+ROUND((G24*M24),2)+ROUND((G25*M25),2) -> 0 | K26: =ROUND((K23*M23/100),2)+ROUND((K24*M24),2)+ROUND((K25*M25),2) -> 0 | O26: =SUM(O23:O25) -> 0
B28: Final Charges | C28: =C20+C26 -> 0 | E28: =E20+E26 -> 36.86 | G28: =G20+G26 -> 86.78 | I28: =I20+I26 -> 0 | K28: =K20+K26 -> 0 | O28: =SUM(O20:O25) -> 123.65
B30: Percentage of Total Charges | C30: =C28/O28 -> 0 | E30: =E28/O28 -> 0.2980994743 | G30: =G28/O28 -> 0.7018196522 | I30: =I28/O28 -> 0 | K30: =K28/O28 -> 0 | O30: =O28/O28 -> 1
B38: 01-0003
B39: 01-0046
B40: 01-0048
B41: 01-0098
B42: 01-0117
B43: 01-0200
B44: 01-0203
B45: 01-0291
B46: 01-0292
B47: 01-0347
B48: 02-0011
B49: 02-0014
B50: 02-0016
B51: 02-0017
B52: 02-0019
B53: 02-0024
B54: 02-0030
B55: 02-0031
B56: 02-0034
B57: 02-0039
B58: 02-0040
B59: 02-0043
B60: 02-0044
B61: 02-0047
B62: 02-0050
B63: 02-0052
B64: 02-0056
B65: 02-0065
B66: 02-0069
B67: 02-0070
B68: 02-0079
B69: 02-0082
B70: 02-0086
B71: 02-0088
B72: 02-0091
B73: 02-0095
B74: 02-0100
B75: 02-0115
B76: 02-0124
B77: 02-0135
B78: 02-0143
B79: 02-0148
B80: 02-0151
B81: 02-0180
B82: 02-0188
B83: 02-0192
B84: 02-0194
B85: 02-0197
B86: 02-0202
B87: 02-0211
B88: 02-0215
B89: 02-0218
B90: 02-0219
B91: 02-0224
B92: 02-0232
B93: 02-0238
B94: 02-0239
B95: 02-0248
B96: 02-0249
B97: 02-0250
B98: 02-0254
B99: 02-0257
B100: 02-0261
B101: 02-0265
B102: 02-0266
B103: 02-0268
B104: 02-0280
B105: 02-0297
B106: 02-0301
B107: 02-0303
B108: 02-0307
B109: 02-0310
B110: 02-0311
B111: 02-0318
B112: 02-0321
B113: 02-0326
B114: 02-0331
B115: 02-0333
B116: 02-0335
B117: 02-0345
B118: 02-0350
B119: 02-0356
B120: 02-0360
B121: 02-0361
B122: 02-0387
B123: 03-0002
B124: 03-0004
B125: 03-0005
B126: 03-0007
B127: 03-0010
B128: 03-0013
B129: 03-0018
B130: 03-0022
B131: 03-0029
B132: 03-0041
B133: 03-0042
B134: 03-0054
B135: 03-0055
B136: 03-0061
B137: 03-0062
B138: 03-0064
B139: 03-0066
B140: 03-0068
B141: 03-0076
B142: 03-0077
B143: 03-0078
B144: 03-0081
B145: 03-0093
B146: 03-0096
B147: 03-0097
B148: 03-0099
B149: 03-0109
B150: 03-0112
B151: 03-0128
B152: 03-0144
B153: 03-0149
B154: 03-0152
B155: 03-0153
B156: 03-0154
B157: 03-0182
B158: 03-0183
B159: 03-0207
B160: 03-0208
B161: 03-0209
B162: 03-0220
B163: 03-0223
B164: 03-0233
B165: 03-0234
B166: 03-0236
B167: 03-0240
B168: 03-0270
B169: 03-0272
B170: 03-0276
B171: 03-0278
B172: 03-0295
B173: 03-0300
B174: 03-0304
B175: 03-0313
B176: 03-0315
B177: 03-0317
B178: 03-0338
B179: 03-0339
B180: 03-0363
B181: 03-0364
B182: 04-0009
B183: 04-0026
B184: 04-0028
B185: 04-0057
B186: 04-0080
B187: 04-0123
B188: 04-0129
B189: 04-0134
B190: 04-0138
B191: 04-0185
B192: 04-0186
B193: 04-0187
B194: 04-0196
B195: 04-0210
B196: 04-0230
B197: 04-0237
B198: 04-0253
B199: 04-0256
B200: 04-0273
B201: 04-0277
B202: 04-0279
B203: 04-0282
B204: 04-0283
B205: 04-0288
B206: 04-0306
B207: 04-0308
B208: 04-0324
B209: 04-0344
B210: 04-0354
B211: 04-0357
B212: 04-0358
B213: 04-0359
... 90 more rows

Sheet Rate 45 (hidden)
B2: Oil & Gas (Energy) Service - Rate 45
B3: =EffectiveDate -> FortisAlberta Inc. 2017 Rates, effective January 1, 2017
M4: Minimum | O4: Minimum
B5: User input area: | M5: Demand | O5: Charge
B6: Demand (kW of capacity) | E6: =Main!F18 -> 0 | G6: kWh delivered | K6: =E6*730*E7 -> 0 | M6: Input | O6: =O20 -> 18.96 | R6: =E20 -> 0 | U6: =G20 -> 18.96
B7: Load Factor | E7: 0 | M7: =Main!D18 -> 95.3 | N7: 0 | O7: 3504.27 | Q7: =M7 -> 95.3 | R7: 1090.71 | T7: =Q7 -> 95.3 | U7: 2413.57
B8: Number of days in Consumption Period | E8: =365/12 -> 30.41666667 | M8: =Main!F18 -> 0 | N8: 0 | O8: 17.85 | Q8: =M8 -> 0 | R8: 0 | T8: =Q8 -> 0 | U8: 17.85
B9: Municipal Code | E9: 99-0001
B10: Epcor RRO rider (daily amount) | E10: 0
B13: BASE CHARGES | C13: Generation | E13: Transmission | G13: Distribution | I13: Retail | M13: Units | O13: Charges
B14: Energy Charges
B15: all kWh | C15: 0 | E15: 0.5274 | M15: =K6 -> 0 | O15: =ROUND((SUM(C15:G15)*M15/100),2) -> 0
B16: Capacity Charges
B17: All kW | E17: 0.357454 | G17: 0.877486 | M17: =E6 -> 0 | O17: =ROUND((((E17*M17)+(G17*M17))*$E$8),2) -> 0
B18: Service Charge | G18: 0.623215 | M18: =E8 -> 30.41666667 | O18: =ROUND(G18*M18,2) -> 18.96
O19: =ROUND((((E19*M19)+(G19*M19))*E8),2) -> 0
B20: Total Base Charges | C20: =C15*M15/100 -> 0 | E20: =ROUND(E17*$M$17*$E$8+E18*$M$18,2) -> 0 | G20: =ROUND(G17*$M$17*$E$8+G18*$M$18,2) -> 18.96 | O20: =SUM(O15:O19) -> 18.96
B22: RIDERS | C22: G Riders | E22: T Riders | G22: D Riders | K22: Other Riders
B23: 2001 EESAI RRO Shortfall Rider | K23: =E10 -> 0 | M23: =E8 -> 30.41666667 | O23: =ROUND((K23*M23/100),2) -> 0
B24: Municipal Assessment Rider A-1 | G24: 0 | M24: =E20+G20 -> 18.96 | O24: =ROUND((G24*M24),2) -> 0
B25: Municipal Franchise (Local Access) Fee | K25: 0 | M25: =E20+G20 -> 18.96 | O25: =ROUND((K25*M25),2) -> 0
B26: Total Riders | G26: =ROUND((G23*M23/100),2)+ROUND((G24*M24),2)+ROUND((G25*M25),2) -> 0 | K26: =ROUND((K23*M23/100),2)+ROUND((K24*M24),2)+ROUND((K25*M25),2) -> 0 | O26: =SUM(O23:O25) -> 0
B28: Final Charges | C28: =C20+C26 -> 0 | E28: =E20+E26 -> 0 | G28: =G20+G26 -> 18.96 | I28: =I20+I26 -> 0 | K28: =K20+K26 -> 0 | O28: =SUM(O20:O25) -> 18.96
B30: Percentage of Total Charges | C30: =C28/O28 -> 0 | E30: =E28/O28 -> 0 | G30: =G28/O28 -> 1 | I30: =I28/O28 -> 0 | K30: =K28/O28 -> 0 | O30: =O28/O28 -> 1
B51: 01-0003
B52: 01-0046
B53: 01-0048
B54: 01-0098
B55: 01-0117
B56: 01-0200
B57: 01-0203
B58: 01-0291
B59: 01-0292
B60: 01-0347
B61: 02-0011
B62: 02-0014
B63: 02-0016
B64: 02-0017
B65: 02-0019
B66: 02-0024
B67: 02-0030
B68: 02-0031
B69: 02-0034
B70: 02-0039
B71: 02-0040
B72: 02-0043
B73: 02-0044
B74: 02-0047
B75: 02-0050
B76: 02-0052
B77: 02-0056
B78: 02-0065
B79: 02-0069
B80: 02-0070
B81: 02-0079
B82: 02-0082
B83: 02-0086
B84: 02-0088
B85: 02-0091
B86: 02-0095
B87: 02-0100
B88: 02-0115
B89: 02-0124
B90: 02-0135
B91: 02-0143
B92: 02-0148
B93: 02-0151
B94: 02-0180
B95: 02-0188
B96: 02-0192
B97: 02-0194
B98: 02-0197
B99: 02-0202
B100: 02-0211
B101: 02-0215
B102: 02-0218
B103: 02-0219
B104: 02-0224
B105: 02-0232
B106: 02-0238
B107: 02-0239
B108: 02-0248
B109: 02-0249
B110: 02-0250
B111: 02-0254
B112: 02-0257
B113: 02-0261
B114: 02-0265
B115: 02-0266
B116: 02-0268
B117: 02-0280
B118: 02-0297
B119: 02-0301
B120: 02-0303
B121: 02-0307
B122: 02-0310
B123: 02-0311
B124: 02-0318
B125: 02-0321
B126: 02-0326
B127: 02-0331
B128: 02-0333
B129: 02-0335
B130: 02-0345
B131: 02-0350
B132: 02-0356
B133: 02-0360
B134: 02-0361
B135: 02-0387
B136: 03-0002
B137: 03-0004
B138: 03-0005
B139: 03-0007
B140: 03-0010
B141: 03-0013
B142: 03-0018
B143: 03-0022
B144: 03-0029
B145: 03-0041
B146: 03-0042
B147: 03-0054
B148: 03-0055
B149: 03-0061
B150: 03-0062
B151: 03-0064
B152: 03-0066
B153: 03-0068
B154: 03-0076
B155: 03-0077
B156: 03-0078
B157: 03-0081
B158: 03-0093
B159: 03-0096
B160: 03-0097
B161: 03-0099
B162: 03-0109
B163: 03-0112
B164: 03-0128
B165: 03-0144
B166: 03-0149
B167: 03-0152
B168: 03-0153
B169: 03-0154
B170: 03-0182
B171: 03-0183
B172: 03-0207
B173: 03-0208
B174: 03-0209
B175: 03-0220
B176: 03-0223
B177: 03-0233
B178: 03-0234
B179: 03-0236
B180: 03-0240
B181: 03-0270
B182: 03-0272
B183: 03-0276
B184: 03-0278
B185: 03-0295
B186: 03-0300
B187: 03-0304
B188: 03-0313
B189: 03-0315
B190: 03-0317
B191: 03-0338
B192: 03-0339
B193: 03-0363
B194: 03-0364
B195: 04-0009
B196: 04-0026
B197: 04-0028
B198: 04-0057
B199: 04-0080
B200: 04-0123
B201: 04-0129
B202: 04-0134
B203: 04-0138
B204: 04-0185
B205: 04-0186
B206: 04-0187
B207: 04-0196
B208: 04-0210
B209: 04-0230
B210: 04-0237
B211: 04-0253
B212: 04-0256
B213: 04-0273
B214: 04-0277
B215: 04-0279
B216: 04-0282
B217: 04-0283
B218: 04-0288
B219: 04-0306
B220: 04-0308
B221: 04-0324
B222: 04-0344
B223: 04-0354
B224: 04-0357
B225: 04-0358
B226: 04-0359
... 90 more rows

Sheet Rate 61 (hidden)
B2: General Service - Rate 61
B3: =EffectiveDate -> FortisAlberta Inc. 2017 Rates, effective January 1, 2017
M4: Minimum | O4: Minimum
B5: User input area: | M5: Demand | O5: Charge
B6: Demand (kW of capacity) | E6: =Main!F18 -> 0 | G6: kWh delivered | K6: =E6*730*E7 -> 0 | M6: Input | O6: =O20 -> 36.77 | R6: =E20 -> 0 | U6: =G20 -> 36.77
B7: Load Factor | E7: 0 | M7: =Main!D18 -> 95.3 | N7: 0 | O7: 775.75 | Q7: =M7 -> 95.3 | R7: 468.24 | T7: =Q7 -> 95.3 | U7: 307.51
B8: Number of days in Consumption Period | E8: =365/12 -> 30.41666667 | M8: =Main!F18 -> 0 | N8: 0 | O8: 34.64 | Q8: =M8 -> 0 | R8: 0 | T8: =Q8 -> 0 | U8: 34.64
B9: Municipal Code | E9: 99-0001
B12: BASE CHARGES | C12: Generation | E12: Transmission | G12: Distribution | I12: Retail | M12: Units | O12: Charges
B13: Energy Charge (¢/kWh)
B14: all kWh consumed | C14: 0 | O14: =ROUND((SUM(C14:G14)*M14/100),2) -> 0
B15: Capacity Charges ($)
B16: All kW | E16: 0.142876 | G16: 0.099929 | M16: =IF(E6=0,0,IF(E6<50,50,E6)) -> 0 | O16: =ROUND(((E16+G16)*M16*E$8),2) -> 0
B17: Service Charge | G17: 1.208901 | M17: =E8 -> 30.41666667 | O17: =ROUND(G17*M17,2) -> 36.77
B20: Total Base Charges | C20: =C14*M14/100 -> 0 | E20: =ROUND(E16*$M$16*$E$8+E17*$M$17,2) -> 0 | G20: =ROUND(G16*$M$16*$E$8+G17*$M$17,2) -> 36.77 | I20: =(I14*M14/100) -> 0 | O20: =SUM(O14:O19) -> 36.77
B22: RIDERS | C22: G Riders | E22: T Riders | G22: D Riders | K22: Other Riders
B23: Municipal Assessment Rider A-1 | G23: 0 | M23: =E20+G20 -> 36.77 | O23: =ROUND((M23*G23),2) -> 0
B24: Municipal Franchise (Local Access) Fee | K24: 0 | M24: =E20+G20 -> 36.77 | O24: =ROUND((K24*M24),2) -> 0
B25: Total Riders | G25: =ROUND((G23*M23),2)+ROUND((G24*M24),2) -> 0 | K25: =ROUND((K23*M23),2)+ROUND((K24*M24),2) -> 0 | O25: =SUM(O23:O24) -> 0
B27: Final Charges | C27: =C20+C25 -> 0 | E27: =E20+E25 -> 0 | G27: =G20+G25 -> 36.77 | I27: =I20+I25 -> 0 | K27: =K20+K25 -> 0 | O27: =SUM(O20:O24) -> 36.77
B29: Percentage of Total Charges | C29: =C27/O27 -> 0 | E29: =E27/O27 -> 0 | G29: =G27/O27 -> 1 | I29: =I27/O27 -> 0 | K29: =K27/O27 -> 0 | O29: =O27/O27 -> 1
B35: 01-0003
B36: 01-0046
B37: 01-0048
B38: 01-0098
B39: 01-0117
B40: 01-0200
B41: 01-0203
B42: 01-0291
B43: 01-0292
B44: 01-0347
B45: 02-0011
B46: 02-0014
B47: 02-0016
B48: 02-0017
B49: 02-0019
B50: 02-0024
B51: 02-0030
B52: 02-0031
B53: 02-0034
B54: 02-0039
B55: 02-0040
B56: 02-0043
B57: 02-0044
B58: 02-0047
B59: 02-0050
B60: 02-0052
B61: 02-0056
B62: 02-0065
B63: 02-0069
B64: 02-0070
B65: 02-0079
B66: 02-0082
B67: 02-0086
B68: 02-0088
B69: 02-0091
B70: 02-0095
B71: 02-0100
B72: 02-0115
B73: 02-0124
B74: 02-0135
B75: 02-0143
B76: 02-0148
B77: 02-0151
B78: 02-0180
B79: 02-0188
B80: 02-0192
B81: 02-0194
B82: 02-0197
B83: 02-0202
B84: 02-0211
B85: 02-0215
B86: 02-0218
B87: 02-0219
B88: 02-0224
B89: 02-0232
B90: 02-0238
B91: 02-0239
B92: 02-0248
B93: 02-0249
B94: 02-0250
B95: 02-0254
B96: 02-0257
B97: 02-0261
B98: 02-0265
B99: 02-0266
B100: 02-0268
B101: 02-0280
B102: 02-0297
B103: 02-0301
B104: 02-0303
B105: 02-0307
B106: 02-0310
B107: 02-0311
B108: 02-0318
B109: 02-0321
B110: 02-0326
B111: 02-0331
B112: 02-0333
B113: 02-0335
B114: 02-0345
B115: 02-0350
B116: 02-0356
B117: 02-0360
B118: 02-0361
B119: 02-0387
B120: 03-0002
B121: 03-0004
B122: 03-0005
B123: 03-0007
B124: 03-0010
B125: 03-0013
B126: 03-0018
B127: 03-0022
B128: 03-0029
B129: 03-0041
B130: 03-0042
B131: 03-0054
B132: 03-0055
B133: 03-0061
B134: 03-0062
B135: 03-0064
B136: 03-0066
B137: 03-0068
B138: 03-0076
B139: 03-0077
B140: 03-0078
B141: 03-0081
B142: 03-0093
B143: 03-0096
B144: 03-0097
B145: 03-0099
B146: 03-0109
B147: 03-0112
B148: 03-0128
B149: 03-0144
B150: 03-0149
B151: 03-0152
B152: 03-0153
B153: 03-0154
B154: 03-0182
B155: 03-0183
B156: 03-0207
B157: 03-0208
B158: 03-0209
B159: 03-0220
B160: 03-0223
B161: 03-0233
B162: 03-0234
B163: 03-0236
B164: 03-0240
B165: 03-0270
B166: 03-0272
B167: 03-0276
B168: 03-0278
B169: 03-0295
B170: 03-0300
B171: 03-0304
B172: 03-0313
B173: 03-0315
B174: 03-0317
B175: 03-0338
B176: 03-0339
B177: 03-0363
B178: 03-0364
B179: 04-0009
B180: 04-0026
B181: 04-0028
B182: 04-0057
B183: 04-0080
B184: 04-0123
B185: 04-0129
B186: 04-0134
B187: 04-0138
B188: 04-0185
B189: 04-0186
B190: 04-0187
B191: 04-0196
B192: 04-0210
B193: 04-0230
B194: 04-0237
B195: 04-0253
B196: 04-0256
B197: 04-0273
B198: 04-0277
B199: 04-0279
B200: 04-0282
B201: 04-0283
B202: 04-0288
B203: 04-0306
B204: 04-0308
B205: 04-0324
B206: 04-0344
B207: 04-0354
B208: 04-0357
B209: 04-0358
B210: 04-0359
B211: 04-0367
B212: 04-0368
B213: 04-0369
... 87 more rows
